bitfinex/quotes_ETHUSD_20220226
["timestamp","ask_amount","ask_price","bid_price","bid_amount"]
[1645904135904,0.00352234,2823.9,2823.0,1.08919723]
[1645904136103,0.00426026,2823.3,2823.0,1.08919723]
[1645904137106,0.00352234,2824.1,2823.0,1.08919723]
[1645904137307,0.00426026,2823.3,2823.0,1.08919723]
[1645904137908,0.00426026,2823.3,2822.9,7.0849]
[1645904138306,3.52506234,2823.9,2822.9,7.0849]
[1645904138754,0.00426018,2823.3,2822.9,7.0849]
[1645904139555,3.52506234,2823.9,2822.9,7.0849]
[1645904139754,0.00426018,2823.3,2822.9,7.0849]
[1645904140658,3.52506234,2823.9,2822.9,7.0849]
[1645904140856,0.02506234,2823.9,2822.9,7.0849]
[1645904141057,0.00426018,2823.3,2822.9,7.0849]
[1645904141856,0.00352234,2823.9,2822.9,7.0849]
[1645904142312,0.00426018,2823.3,2822.9,7.0849]
[1645904143107,1.0,2823.7,2822.9,7.0849]
[1645904143308,3.50352234,2823.9,2822.9,7.0849]
[1645904143309,0.00426018,2823.3,2822.9,7.0849]
[1645904144314,1.0,2823.5,2822.9,7.0849]
[1645904144511,0.00426018,2823.3,2822.9,7.0849]
[1645904145513,0.00352234,2823.7,2822.9,7.0849]
[1645904145715,1.0,2823.8,2822.9,7.0849]
[1645904145716,0.00426018,2823.3,2822.9,7.0849]
[1645904146762,0.00352234,2823.6,2822.9,7.0849]
[1645904147065,0.00426018,2823.3,2822.9,7.0849]
[1645904147866,0.00352234,2823.6,2822.9,7.0849]
[1645904148068,1.0,2823.7,2822.9,7.0849]
[1645904148373,0.00426018,2823.3,2822.9,7.08363073]
[1645904148766,0.00426018,2823.3,2823.0,10.95]
[1645904148966,0.00426018,2823.3,2822.9,7.08363073]
[1645904149167,0.00352234,2823.8,2822.9,7.08363073]
[1645904149467,0.00426026,2823.3,2822.9,7.08363073]
[1645904149714,0.00426026,2823.3,2823.0,0.8859151]
[1645904150309,0.00352234,2823.8,2823.5,1.33441991]
[1645904150515,1.00352234,2824.1,2823.5,1.33441991]
[1645904150711,1.0,2824.1,2823.5,1.33441991]
[1645904151711,0.00426033,2823.9,2823.5,1.33441991]
[1645904152721,1.0,2824.1,2823.5,1.33441991]
[1645904152918,1.0,2824.1,2823.1,1.2234]
[1645904153118,0.00426033,2823.8,2823.1,1.2234]
[1645904153961,0.00352234,2824.0,2823.4,1.29926705]
[1645904154161,0.00426033,2823.6,2823.4,1.29926705]
[1645904155163,1.0,2824.0,2823.1,1.2234]
[1645904155364,0.00426033,2823.6,2823.1,1.2234]
[1645904156168,0.00426033,2823.6,2823.4,1.14533574]
[1645904156368,0.00352234,2823.9,2823.4,1.14533574]
[1645904156568,0.00426033,2823.5,2823.1,1.2234]
[1645904157069,0.00426033,2823.5,2823.2,0.3586]
[1645904157322,0.00426033,2823.5,2823.1,16.54877904]
[1645904157323,1.78164141,2824.6,2823.4,11.3086]
[1645904157626,1.78164141,2824.9,2823.6,11.54897417]
[1645904157817,2.22705177,2825.5,2823.8,11.3086]
[1645904158018,0.5,2825.6,2824.7,1.34346203]
[1645904159219,0.5,2825.6,2824.7,4.84346203]
[1645904159430,0.5,2825.6,2824.7,15.79346203]
[1645904159623,0.5,2825.6,2824.7,5.84346203]
[1645904160419,0.5,2825.6,2824.7,2.34346203]
[1645904160969,0.5,2825.6,2824.7,1.34346203]
[1645904161562,0.00424095,2825.3,2824.7,1.34346203]
[1645904162368,0.5,2825.6,2824.7,1.34346203]
[1645904162773,0.00424095,2825.1,2824.7,1.34346203]
[1645904163669,0.00350605,2825.5,2824.7,1.34346203]
[1645904163873,0.00424095,2825.0,2824.7,1.34346203]
[1645904164816,0.00350605,2825.5,2824.7,1.34346203]
[1645904165017,0.00424095,2825.0,2824.7,1.29346203]
[1645904166113,0.00350605,2825.5,2824.7,1.29346203]
[1645904166313,0.00424095,2825.0,2824.7,1.29346203]
[1645904167112,0.00350605,2825.5,2824.7,1.29346203]
[1645904167517,0.00424095,2825.0,2824.7,1.29346203]
[1645904168552,0.00350605,2825.5,2824.7,1.29346203]
[1645904168754,0.00424095,2825.0,2824.7,1.29346203]
[1645904168953,0.00424095,2825.0,2824.5,2.2123276]
[1645904169156,0.00424095,2825.0,2824.6,1.3]
[1645904169354,0.00424095,2825.0,2824.6,0.3]
[1645904169554,1.457747,2825.6,2824.6,11.25]
[1645904169761,0.457747,2825.6,2824.8,0.3586]
[1645904169956,0.457747,2825.6,2824.8,10.95]
[1645904169957,0.00424095,2824.9,2824.8,10.95]
[1645904170156,0.00424095,2824.9,2824.8,14.75]
[1645904170358,0.00424095,2824.9,2824.8,22.3316]
[1645904170560,0.00424095,2824.9,2824.8,24.39035151]
[1645904170755,0.01695629,2826.2,2824.8,24.39035151]
[1645904170955,3.0827,2826.4,2825.3,0.8851869]
[1645904171154,3.0827,2826.4,2825.3,13.0116869]
[1645904171355,3.0827,2826.4,2825.3,16.5116869]
[1645904171658,3.0827,2826.4,2825.3,16.8702869]
[1645904171855,3.0827,2826.4,2825.3,17.8702869]
[1645904172505,3.0827,2826.4,2825.3,6.5616869]
[1645904172707,3.0827,2826.4,2825.3,19.2818069]
[1645904172907,3.0827,2826.4,2825.3,8.3318069]
[1645904173306,3.0827,2826.4,2825.8,1.43556175]
[1645904173507,0.00127077,2826.0,2825.8,1.43556175]
[1645904174508,4.6723,2826.9,2825.3,5.8179]
[1645904174707,0.00127077,2826.0,2825.3,5.8179]
[1645904174907,0.00127077,2826.0,2825.3,2.6179]
[1645904175106,0.00127077,2826.0,2825.3,1.3179]
[1645904175711,1.0,2826.1,2825.3,2.24141694]
[1645904175956,1.0,2826.1,2825.3,1.1765]
[1645904176153,0.00127077,2825.8,2825.3,1.1765]
[1645904177053,0.00127077,2825.7,2825.3,1.1765]
[1645904178059,0.00348918,2826.0,2825.5,1.28037414]
[1645904178457,1.0,2826.2,2825.5,1.28037414]
[1645904178660,0.00127077,2825.6,2825.5,1.28037414]
[1645904179059,0.00127077,2825.6,2825.3,1.1765]
[1645904179258,0.00348918,2826.1,2825.3,1.1765]
[1645904179460,0.88882918,2826.1,2825.1,0.00087055]
[1645904179708,0.00127077,2825.7,2825.1,0.00087055]
[1645904179914,0.00127077,2825.7,2824.9,0.1414]
[1645904179915,1.00127077,2825.7,2824.9,0.1414]
[1645904180106,1.00127077,2825.7,2824.8,7.0814]
[1645904180107,3.925,2825.6,2824.8,7.0814]
[1645904180308,0.425,2825.6,2824.8,7.0814]
[1645904180507,1.425,2825.6,2824.8,7.0814]
[1645904180706,0.425,2825.6,2824.8,7.0814]
[1645904180911,1.0,2825.4,2824.8,7.0814]
[1645904181307,0.00127077,2825.3,2824.8,7.0814]
[1645904181707,1.0,2825.4,2824.8,7.0814]
[1645904182106,0.00111119,2825.2,2824.8,7.0814]
[1645904182910,1.0,2825.4,2824.8,7.0814]
[1645904183312,0.00369842,2825.1,2824.8,7.0814]
[1645904184270,0.00348918,2825.3,2824.8,7.0814]
[1645904184568,0.00369836,2825.1,2824.9,3.5]
[1645904184967,0.00369836,2825.1,2825.0,0.1414]
[1645904185169,0.00369836,2825.1,2824.9,3.6414]
[1645904185366,0.00348918,2826.0,2824.9,3.6414]
[1645904185768,0.00344469,2825.2,2824.9,3.6414]
[1645904186568,1.00348918,2826.0,2825.3,1.41894396]
[1645904186767,1.0,2826.0,2825.3,1.41894396]
[1645904187803,1.0,2826.0,2824.9,3.6414]
[1645904188004,0.00344469,2825.8,2824.9,0.1414]
[1645904188603,0.00344469,2825.8,2824.8,12.35188]
[1645904188806,0.00344469,2825.8,2825.2,1.0749232]
[1645904189003,1.00348918,2825.9,2825.2,1.0749232]
[1645904189206,0.0034902,2825.4,2825.2,1.0749232]
[1645904189612,0.0034902,2825.4,2825.3,3.5]
[1645904190205,0.00348918,2826.3,2825.3,3.6414]
[1645904190608,0.0034902,2825.5,2825.4,1.32750343]
[1645904191472,0.00348918,2826.3,2825.4,1.32750343]
[1645904191663,0.0034902,2825.6,2825.2,0.1414]
[1645904192667,1.0,2825.7,2825.2,0.1414]
[1645904193069,0.00347492,2825.5,2825.2,0.14003652]
[1645904193869,1.0,2825.7,2825.2,0.14003652]
[1645904194174,0.00347492,2825.5,2825.2,0.14003652]
[1645904195005,1.0,2825.7,2825.2,0.14003652]
[1645904195206,1.0,2825.7,2825.1,1.25914138]
[1645904195406,0.00347492,2825.5,2824.8,7.0814]
[1645904196211,1.00348918,2825.7,2824.8,7.0814]
[1645904196411,1.00348918,2825.7,2824.8,6.9314]
[1645904196611,1.00348918,2825.7,2824.8,7.95135963]
[1645904196612,0.00347714,2825.3,2824.8,7.95135963]
[1645904197513,0.00348918,2825.5,2824.8,7.95135963]
[1645904197717,0.00347714,2825.2,2824.8,6.9314]
[1645904198113,0.425,2825.1,2824.8,6.9314]
[1645904198315,3.5,2825.0,2824.8,6.9314]
[1645904198570,4.225,2825.0,2824.8,6.9314]
[1645904198767,0.725,2825.0,2824.8,6.9314]
[1645904198965,1.0,2824.9,2824.8,6.9314]
[1645904199163,4.925,2824.9,2824.8,6.9314]
[1645904199368,1.425,2824.9,2824.8,6.9314]
[1645904199763,2.31076,2824.9,2824.8,6.9314]
[1645904200968,5.81076,2824.9,2824.8,6.9314]
[1645904201170,5.81076,2824.9,2823.9,0.25]
[1645904201171,4.81076,2824.9,2823.9,0.25]
[1645904201380,0.88598,2824.1,2823.6,0.1416]
[1645904201569,1.87548,2824.1,2823.6,0.1416]
[1645904201874,1.87548,2824.1,2823.5,0.15428904]
[1645904202068,0.9895,2824.1,2823.6,1.06966783]
[1645904202910,1.0,2824.3,2823.5,0.01268904]
[1645904204118,0.88593,2824.2,2823.5,0.01268904]
[1645904205120,1.0,2824.3,2823.5,0.01268904]
[1645904206460,3.5,2824.7,2823.5,0.01268904]
[1645904206461,0.88594,2824.2,2823.5,0.01268904]
[1645904207061,1.0,2824.1,2823.5,0.01268904]
[1645904207456,1.6,2824.3,2823.6,1.24364689]
[1645904207866,0.3,2824.3,2823.6,1.24364689]
[1645904208261,5.8,2824.4,2823.6,1.24364689]
[1645904208457,2.3,2824.4,2823.6,1.24364689]
[1645904208658,1.3,2824.4,2823.5,0.01268904]
[1645904208857,1.0,2824.3,2823.5,0.01268904]
[1645904209723,1.18585,2824.5,2823.6,1.30109566]
[1645904210309,2.18585,2824.5,2823.6,1.30109566]
[1645904211108,2.18585,2824.5,2823.5,0.01268904]
[1645904211310,3.5,2824.4,2823.5,0.01268904]
[1645904211510,1.0,2824.4,2823.5,0.01268904]
[1645904212316,1.0,2824.4,2823.8,1.2243002]
[1645904212515,1.0,2824.4,2823.5,1.24258904]
[1645904212915,1.0,2824.7,2823.5,1.24258904]
[1645904213116,1.0,2824.7,2823.6,0.1416]
[1645904213575,1.0,2824.7,2823.6,1.0273138]
[1645904213775,0.88582,2824.6,2823.5,1.38418904]
[1645904213975,1.0,2824.5,2823.5,1.38418904]
[1645904214379,1.0,2824.4,2823.5,1.38418904]
[1645904214579,1.0,2824.4,2823.5,1.24258904]
[1645904214778,1.0,2824.4,2823.6,1.08262272]
[1645904215780,0.88591,2824.3,2823.6,1.08262272]
[1645904217610,1.0,2824.4,2823.7,3.5]
[1645904217803,1.0,2824.4,2823.6,1.08262272]
[1645904218205,0.88583,2824.6,2823.6,1.08262272]
[1645904218406,1.3,2824.7,2823.6,4.94122272]
[1645904218610,1.0,2824.7,2824.1,1.04119324]
[1645904218808,1.0,2824.7,2823.6,3.8586]
[1645904220406,1.0,2824.7,2823.9,1.24983582]
[1645904220948,3.1196,2824.8,2823.9,1.24983582]
[1645904221959,1.0,2824.7,2823.9,1.24983582]
[1645904222958,1.0,2824.7,2823.6,0.3586]
[1645904223562,0.88585,2824.7,2823.5,1.38418904]
[1645904223760,1.0,2824.6,2823.5,1.38418904]
[1645904223963,0.3,2824.6,2823.5,1.24258904]
[1645904224161,1.0,2824.4,2823.5,1.24258904]
[1645904224818,1.0,2824.4,2823.5,1.24168481]
[1645904225023,0.88592,2824.4,2823.5,1.24168481]
[1645904225224,0.4438,2824.3,2823.5,1.24168481]
[1645904225527,1.0,2824.0,2823.5,1.24168481]
[1645904225725,1.0,2824.0,2823.5,0.01178481]
[1645904226120,1.0,2823.9,2823.5,0.01178481]
[1645904228030,1.2322,2824.2,2823.5,0.01178481]
[1645904228031,2.2322,2824.2,2823.5,0.01178481]
[1645904228229,2.5322,2824.2,2823.5,0.01178481]
[1645904228855,1.5322,2824.2,2823.5,0.01178481]
[1645904229255,1.0,2823.9,2823.5,0.01178481]
[1645904230664,1.0,2823.9,2823.6,1.15300997]
[1645904230861,1.0,2823.9,2823.7,3.5]
[1645904231061,1.21556422,2825.1,2823.7,3.8]
[1645904231062,1.21207504,2825.1,2823.7,3.8]
[1645904231259,1.21207504,2825.1,2823.8,11.3086]
[1645904231260,0.00348918,2825.0,2823.8,11.3086]
[1645904231565,0.00696428,2825.1,2824.0,11.3086]
[1645904231759,0.00696428,2825.1,2824.4,0.88546]
[1645904231960,0.00696428,2825.1,2824.5,1.16836609]
[1645904231961,0.0034751,2825.1,2824.5,1.16836609]
[1645904232216,0.0034751,2825.1,2824.5,1.52696609]
[1645904232415,0.00348918,2825.6,2825.0,1.01533313]
[1645904232614,3.1216,2825.7,2825.0,1.01533313]
[1645904232815,0.0010471,2825.1,2825.0,1.01533313]
[1645904233715,0.00348918,2825.8,2825.0,1.01533313]
[1645904233929,0.3,2826.1,2825.0,1.01533313]
[1645904233930,0.00104718,2825.2,2825.0,1.01533313]
[1645904234319,0.00104718,2825.2,2824.7,3.5]
[1645904234622,1.425,2825.1,2823.7,1.1874]
[1645904234818,0.00348918,2825.0,2823.7,1.1874]
[1645904235020,0.00348918,2825.0,2823.8,3.5]
[1645904235217,0.00347661,2825.1,2823.8,3.5]
[1645904235417,1.0,2825.0,2824.4,1.0861963]
[1645904235618,1.88577,2825.0,2824.4,1.0861963]
[1645904235824,1.0,2825.0,2824.5,3.5]
[1645904236063,1.0,2825.7,2824.5,3.5]
[1645904236064,0.00348918,2825.4,2824.5,14.45]
[1645904236263,0.00348918,2825.6,2824.5,10.95]
[1645904236461,0.0042299,2825.1,2824.5,14.45]
[1645904236763,0.0042299,2825.1,2824.5,14.8086]
[1645904237364,1.00348918,2825.8,2824.5,16.5793]
[1645904237564,1.00348918,2825.8,2824.8,0.8853863]
[1645904237763,1.00348918,2825.8,2824.9,4.56195653]
[1645904237764,0.00423005,2825.1,2824.9,4.56195653]
[1645904237971,1.0,2825.8,2825.0,14.94679997]
[1645904238169,0.01691316,2826.3,2825.2,11.3086]
[1645904238170,0.00348918,2825.7,2825.2,11.3086]
[1645904238371,0.01691316,2826.3,2825.4,13.07855]
[1645904238564,0.14522218,2826.7,2825.5,14.8086]
[1645904238565,0.00348918,2826.7,2825.5,14.8086]
[1645904238765,1.0,2827.0,2825.7,0.8849666]
[1645904238967,0.00348918,2826.9,2826.4,1.15992288]
[1645904239168,1.0,2827.0,2826.0,0.88497]
[1645904239370,1.00348918,2826.9,2826.0,0.88497]
[1645904239565,1.0,2826.9,2826.0,0.88497]
[1645904239808,0.00348918,2826.8,2826.0,0.88497]
[1645904240210,0.00421977,2826.6,2826.4,1.10517331]
[1645904240917,0.00421977,2826.6,2826.2,0.8849505]
[1645904241110,1.30348918,2826.9,2826.2,0.8849505]
[1645904241314,0.00421977,2826.6,2826.2,0.8849505]
[1645904242316,1.30348918,2826.9,2826.0,0.88497]
[1645904242317,1.0,2826.7,2826.0,0.88497]
[1645904242517,0.00421977,2826.5,2826.0,0.88497]
[1645904243475,1.0,2826.7,2826.0,0.88497]
[1645904243664,0.00421977,2826.4,2825.9,1.7698789]
[1645904243863,0.00421977,2826.4,2825.8,2.98873]
[1645904243864,0.00421977,2826.4,2825.8,1.2188]
[1645904244269,1.00421977,2826.4,2825.8,1.2188]
[1645904244469,1.00421977,2826.4,2825.4,0.8851961]
[1645904244670,0.00348949,2826.3,2825.4,0.8851961]
[1645904245169,0.00421977,2826.2,2825.4,0.8851961]
[1645904245568,0.00421977,2826.2,2826.0,1.31051851]
[1645904245769,1.0,2826.4,2826.0,1.31051851]
[1645904246169,1.0168761,2826.4,2826.0,1.31051851]
[1645904247201,1.0,2826.4,2826.0,1.31051851]
[1645904247410,0.00421977,2826.3,2826.0,1.31051851]
[1645904248209,1.00348949,2826.9,2826.0,1.31051851]
[1645904248410,1.00348949,2826.9,2825.9,3.5]
[1645904248411,1.00348949,2826.9,2826.6,1.02966033]
[1645904248715,0.01687657,2826.7,2826.6,1.02966033]
[1645904249509,1.0,2826.9,2826.6,1.02966033]
[1645904251252,1.0,2826.9,2826.1,3.5]
[1645904251451,0.42848949,2827.6,2826.0,0.1414]
[1645904251452,1.0,2826.8,2826.0,0.1414]
[1645904251652,0.00348949,2826.8,2826.0,0.1414]
[1645904251857,5.425,2827.3,2825.9,1.1402]
[1645904251858,1.0,2826.4,2825.9,1.1402]
[1645904252057,1.0,2826.4,2825.5,11.0866]
[1645904252254,1.0,2826.4,2825.9,1.20470236]
[1645904252255,0.00348949,2826.3,2825.9,1.20470236]
[1645904252453,1.0,2826.4,2825.9,1.20470236]
[1645904253053,1.0,2826.4,2825.4,1.208]
[1645904253253,0.00348949,2826.3,2825.4,1.208]
[1645904253454,0.00683979,2826.3,2825.4,1.208]
[1645904254253,0.00348949,2826.3,2825.4,1.208]
[1645904254455,0.0033503,2826.0,2825.4,1.208]
[1645904254707,0.0033503,2826.0,2825.5,0.8851096]
[1645904255512,0.00348949,2826.3,2825.5,1.7702296]
[1645904255712,0.0033503,2825.9,2825.5,1.7702296]
[1645904255911,0.0033503,2825.9,2825.7,0.88505]
[1645904256315,0.0033503,2825.9,2825.6,1.03197658]
[1645904256714,0.00348949,2826.4,2825.6,1.03197658]
[1645904256913,0.0033503,2825.9,2825.6,1.03197658]
[1645904257816,0.00348949,2826.4,2825.6,1.03197658]
[1645904258014,1.0,2826.5,2826.2,1.35351604]
[1645904258214,0.01738934,2826.4,2826.2,1.35351604]
[1645904258462,0.01389985,2826.4,2826.2,1.35351604]
[1645904259058,1.0,2826.5,2825.5,5.4116296]
[1645904259257,1.0,2826.5,2825.5,1.9116296]
[1645904259258,0.00696513,2826.4,2825.5,1.9116296]
[1645904259658,0.00696513,2826.4,2825.5,5.4116296]
[1645904259857,0.00696513,2826.4,2825.5,5.2702296]
[1645904260357,0.00348949,2826.4,2825.5,5.2702296]
[1645904260558,0.00347564,2826.1,2825.5,5.2702296]
[1645904260956,0.00347564,2826.1,2825.5,1.7702296]
[1645904261157,0.00347564,2826.1,2825.6,1.25355337]
[1645904261358,0.00347564,2826.1,2825.6,1.15355337]
[1645904261563,0.00348949,2826.4,2825.6,1.15355337]
[1645904261757,0.00347898,2826.0,2825.6,1.15355337]
[1645904261961,0.97088217,2826.5,2825.6,1.15355337]
[1645904263609,0.97088217,2826.5,2825.6,1.10355337]
[1645904265416,0.97504925,2826.5,2825.9,0.00508323]
[1645904265615,0.00416708,2826.5,2825.9,0.00508323]
[1645904265814,0.9704,2826.3,2825.9,0.00508323]
[1645904266264,15.00015077,2827.7,2825.9,0.00508323]
[1645904266461,1.0,2827.4,2826.0,0.88496]
[1645904266666,2.5,2828.0,2826.4,0.01249373]
[1645904266869,0.5,2828.0,2826.4,3.09142343]
[1645904267059,0.5,2828.0,2826.5,3.8586]
[1645904267260,1.76947,2828.5,2827.6,1.40879719]
[1645904267868,0.88465,2828.6,2827.7,3.5]
[1645904268067,1.0,2828.8,2827.7,3.5]
[1645904268264,2.0,2829.3,2829.2,1.31404223]
[1645904268467,2.0,2829.3,2829.2,4.81404223]
[1645904268664,0.0034743,2829.9,2828.3,0.25]
[1645904268867,0.0034743,2829.2,2828.4,1.7683725]
[1645904269065,0.141595,2829.5,2828.1,1.8843]
[1645904269266,0.8878543,2829.4,2828.0,0.1414]
[1645904269471,0.0034743,2829.3,2828.0,0.1414]
[1645904269708,1.0,2829.0,2827.8,10.2559]
[1645904269908,1.0,2829.0,2827.8,2.3728]
[1645904269909,0.0034743,2828.9,2827.8,2.3728]
[1645904270212,1.7727043,2828.9,2827.3,9.7073]
[1645904270413,1.7727043,2828.9,2827.3,6.2073]
[1645904270414,0.88462,2828.6,2827.3,6.2073]
[1645904270613,1.18462,2828.6,2827.2,11.7679558]
[1645904270815,0.3,2828.6,2827.2,5.3846558]
[1645904271012,1.0,2828.4,2827.2,1.8846558]
[1645904271213,1.0,2828.4,2827.2,0.8846558]
[1645904271414,0.8847,2828.3,2827.2,0.8846558]
[1645904271613,0.00406344,2828.0,2827.2,0.8846558]
[1645904271818,0.00406344,2828.0,2827.3,4.1586]
[1645904272020,0.00406344,2828.0,2827.4,3.0120217]
[1645904272213,0.00406344,2828.0,2827.5,4.79878674]
[1645904272418,0.00406344,2828.0,2827.6,0.3586]
[1645904272617,0.5,2829.5,2827.6,0.3586]
[1645904272819,0.5,2829.5,2828.0,0.88435]
[1645904273016,0.00489169,2828.3,2828.1,3.5]
[1645904273219,0.00489169,2828.3,2828.2,1.43247836]
[1645904273469,0.00489169,2828.3,2828.2,4.93247836]
[1645904273866,1.0,2829.2,2828.2,4.93247836]
[1645904274066,6.5758,2830.1,2828.2,4.93247836]
[1645904274266,6.5758,2830.1,2828.2,12.75977836]
[1645904274267,0.00122311,2828.4,2828.2,12.75977836]
[1645904274673,0.00122311,2828.4,2828.2,1.79107836]
[1645904275072,1.0,2829.4,2828.2,5.29107836]
[1645904275273,0.00122311,2828.4,2828.2,5.29107836]
[1645904275873,0.00122311,2828.4,2828.3,3.8586]
[1645904276073,0.00122311,2828.4,2828.3,0.3586]
[1645904276378,1.0,2829.2,2828.2,1.43247836]
[1645904276576,0.00406344,2828.5,2828.2,1.43247836]
[1645904277415,0.00345685,2828.7,2828.2,1.43247836]
[1645904277718,0.00345685,2829.1,2828.7,1.36095992]
[1645904277916,0.01625133,2828.9,2828.7,1.36095992]
[1645904278315,0.01625133,2828.9,2828.1,0.8843551]
[1645904278520,0.01625133,2828.9,2828.0,0.88434]
[1645904278717,0.3034566,2829.3,2828.0,0.88434]
[1645904278918,0.3034566,2829.3,2828.1,0.8843634]
[1645904278919,0.0012191,2828.6,2828.1,0.8843634]
[1645904279720,0.0012191,2828.6,2828.1,1.7686734]
[1645904279915,1.3034566,2829.3,2828.1,1.7686734]
[1645904280117,0.0012191,2828.5,2828.1,1.7686734]
[1645904280316,0.0012191,2828.5,2828.1,0.8843634]
[1645904280519,0.0012191,2828.5,2827.8,0.22649782]
[1645904280972,0.0012191,2828.5,2827.8,0.08509782]
[1645904281179,0.0012191,2828.5,2828.1,1.0959057]
[1645904281578,0.00406344,2828.3,2828.1,1.0959057]
[1645904282386,0.0034566,2828.9,2827.5,0.884544]
[1645904282583,0.00354401,2828.3,2827.5,0.884544]
[1645904283387,0.00354401,2828.3,2828.0,1.34322556]
[1645904283584,1.0034566,2828.6,2828.0,1.34322556]
[1645904283781,1.0034566,2828.6,2827.4,0.25]
[1645904283782,1.3,2828.6,2827.4,0.25]
[1645904283984,0.00354401,2828.0,2827.2,6.5755809]
[1645904284382,0.00354401,2828.0,2827.2,11.0755809]
[1645904284815,1.0034566,2828.5,2827.2,11.0755809]
[1645904285025,0.00427041,2828.2,2827.8,1.44454911]
[1645904285818,0.00427041,2828.2,2827.2,2.1535275]
[1645904286017,0.8881266,2828.4,2827.2,1.2689]
[1645904286018,1.0,2828.1,2827.2,1.2689]
[1645904286217,0.4284566,2828.0,2827.2,0.1414]
[1645904286617,1.0,2827.6,2826.9,0.00510065]
[1645904286816,1.0,2827.6,2827.4,1.34137761]
[1645904287417,0.00406344,2827.6,2827.4,1.34137761]
[1645904288456,0.0034566,2828.1,2827.4,1.34137761]
[1645904288658,0.0034566,2828.1,2826.9,3.50510043]
[1645904288659,0.00406344,2827.6,2826.9,3.50510043]
[1645904288862,0.00406344,2827.6,2826.9,0.14650043]
[1645904289662,1.0,2827.9,2826.9,0.1414]
[1645904289962,0.00406344,2827.4,2827.1,1.35064313]
[1645904290763,0.0034566,2827.8,2826.8,0.08512792]
[1645904290969,0.88488,2827.7,2826.8,0.08512792]
[1645904291167,0.00406344,2827.4,2826.9,0.00510032]
[1645904291868,0.00406344,2827.4,2826.9,1.18017119]
[1645904292067,0.0034566,2827.6,2826.9,1.17507087]
[1645904292326,0.00406337,2827.3,2826.9,1.18017115]
[1645904293326,1.0034566,2827.8,2826.8,0.08512792]
[1645904293628,0.0015282,2826.9,2826.8,0.08512792]
[1645904293827,0.0015282,2826.9,2826.7,0.1414]
[1645904294033,0.0015282,2826.9,2825.8,1.01207713]
[1645904294034,0.0015282,2826.9,2825.8,1.0]
[1645904294227,0.0015282,2826.9,2825.7,7.6539]
[1645904294426,0.0015282,2826.9,2825.8,1.06976532]
[1645904294627,1.0,2826.8,2825.8,1.06976532]
[1645904295027,1.3,2826.8,2825.8,1.06976532]
[1645904295234,1.0,2826.7,2826.2,0.00510122]
[1645904295531,0.9526171,2826.7,2826.2,0.00510122]
[1645904295729,0.3,2826.8,2825.8,1.06976532]
[1645904295959,0.3,2826.8,2826.3,0.00388449]
[1645904296160,0.7265282,2826.9,2826.3,0.00388449]
[1645904296365,1.6785282,2826.9,2826.3,0.00388449]
[1645904296561,0.7265282,2826.9,2826.3,0.00388449]
[1645904296765,0.952,2826.7,2826.3,0.00388449]
[1645904296967,0.952,2826.7,2825.8,1.95484952]
[1645904297167,0.952,2826.7,2826.5,0.00491559]
[1645904298271,1.8372,2826.7,2825.7,1.2417]
[1645904298472,1.8372,2826.7,2826.5,0.00465349]
[1645904298669,0.952,2826.7,2826.5,0.00465349]
[1645904298973,0.0015282,2826.9,2826.5,0.00465349]
[1645904299371,0.0015282,2826.9,2826.0,6.69959904]
[1645904299839,0.0015282,2826.9,2826.6,0.00465336]
[1645904300639,0.0015282,2826.9,2826.3,0.01524399]
[1645904300845,0.0015282,2826.9,2826.6,0.0046208]
[1645904301846,0.0015282,2826.9,2826.3,0.01524399]
[1645904302047,0.0015282,2826.9,2826.6,0.00453331]
[1645904302551,0.5015282,2826.9,2826.6,0.00453331]
[1645904302958,0.0015282,2826.9,2826.3,0.01524399]
[1645904303357,0.0015282,2826.9,2826.6,0.00453331]
[1645904304168,0.0015282,2826.9,2826.3,0.01524399]
[1645904304468,0.0015282,2826.9,2826.6,0.00454421]
[1645904304668,0.0015282,2826.9,2826.3,0.01524399]
[1645904304669,0.0015282,2826.9,2826.3,0.0097882]
[1645904305274,0.0015282,2826.9,2826.3,0.01522843]
[1645904308024,0.952,2826.8,2826.3,0.01522843]
[1645904308222,0.425,2827.4,2826.3,0.01522843]
[1645904308426,1.77616186,2827.7,2826.3,0.01522843]
[1645904308427,0.00489831,2827.7,2826.6,0.01220227]
[1645904308622,0.00489831,2827.7,2826.8,0.3586]
[1645904308824,0.00489831,2827.7,2827.0,0.3586]
[1645904309023,0.00489831,2827.7,2827.3,1.1344088]
[1645904309225,3.0943,2828.8,2827.3,4.6344088]
[1645904309424,3.0943,2828.8,2827.8,1.01605516]
[1645904309624,1.77126355,2828.9,2827.3,4.5]
[1645904309828,1.77126355,2828.9,2827.1,1.1448]
[1645904309829,0.88467,2828.4,2827.1,1.1448]
[1645904310025,1.30967,2828.4,2827.1,1.1448]
[1645904310425,1.0,2828.2,2827.1,1.1448]
[1645904310627,1.0,2828.2,2827.1,2.48668737]
[1645904310830,0.3,2828.2,2827.1,1.1448]
[1645904311070,1.0,2828.1,2827.2,0.8846562]
[1645904311272,0.3,2828.5,2827.2,0.8846562]
[1645904311476,1.0,2828.3,2827.2,0.8846562]
[1645904311669,2.49626355,2828.6,2827.2,0.8846562]
[1645904311869,1.0,2828.1,2827.2,0.8846562]
[1645904312271,0.725,2828.6,2827.6,1.08776166]
[1645904312272,1.0,2828.3,2827.6,1.08776166]
[1645904313071,0.00408852,2828.1,2827.6,1.08776166]
[1645904313876,0.00408852,2828.1,2827.2,1.7690797]
[1645904314074,1.0,2828.2,2827.0,2.0192332]
[1645904314272,1.0,2828.2,2827.1,3.1448]
[1645904314475,0.00408852,2828.0,2827.1,3.1448]
[1645904314711,0.00408852,2828.0,2827.2,0.8846252]
[1645904314916,0.00408852,2828.0,2827.8,1.42443557]
[1645904315118,0.00408852,2828.0,2827.2,1.25473236]
[1645904315119,0.00408852,2828.0,2827.3,3.5]
[1645904315322,0.0205316,2828.1,2827.2,0.89613236]
[1645904315719,0.00408852,2828.0,2827.2,0.89613236]
[1645904315923,0.00408852,2828.0,2827.3,3.5]
[1645904316119,0.00408852,2828.0,2827.8,1.36114779]
[1645904316520,0.01709238,2828.1,2827.8,1.36114779]
[1645904316921,0.00408852,2828.0,2827.8,1.36114779]